fUST/lending_fUST_20250518
["ID","MTS","AMOUNT","RATE_DAILY","PERIOD"]
[361411660,1747559435078,-450.0,0.00013835,2]
[361411661,1747559435088,-450.0,0.00013835,2]
[361411662,1747559435098,-450.0,0.00013835,2]
[361411663,1747559435107,-450.0,0.00013835,2]
[361411664,1747559435117,-450.0,0.00013835,2]
[361411665,1747559435127,-450.0,0.00013835,2]
[361411666,1747559435136,-450.0,0.00013835,2]
[361411667,1747559435147,-450.0,0.00013835,2]
[361411668,1747559435157,-450.0,0.00013835,2]
[361411669,1747559435167,-450.0,0.00013835,2]
[361411670,1747559435177,-450.0,0.00013835,2]
[361411671,1747559435187,-450.0,0.00013835,2]
[361411672,1747559435197,-450.0,0.00013972,2]
[361411673,1747559435209,-450.0,0.00013972,2]
[361411674,1747559435220,-587.88,0.00013972,2]
[361411675,1747559435230,-450.0,0.00013972,2]
[361411676,1747559435239,-450.0,0.00013972,2]
[361411677,1747559435248,-450.0,0.00013972,2]
[361411678,1747559435258,-330.37449943,0.00013972,2]
[361411679,1747559435269,-450.0,0.00013972,2]
[361411680,1747559435279,-450.0,0.00013972,2]
[361411681,1747559435288,-450.0,0.00013972,2]
[361411682,1747559435297,-450.0,0.00013972,2]
[361411683,1747559435308,-450.0,0.00013972,2]
[361411684,1747559435317,-450.0,0.00013972,2]
[361411685,1747559435326,-450.0,0.00013972,2]
[361411686,1747559435335,-450.0,0.00013972,2]
[361411687,1747559435345,-450.0,0.00013972,2]
[361411688,1747559435354,-450.0,0.00013972,2]
[361411689,1747559435363,-450.0,0.00013972,2]
[361411690,1747559435374,-450.0,0.00013972,2]
[361411691,1747559435383,-450.0,0.00013972,2]
[361411692,1747559435392,-450.0,0.00013972,2]
[361411693,1747559435402,-450.0,0.00013972,2]
[361411694,1747559435412,-450.0,0.00013972,2]
[361411695,1747559435421,-450.0,0.00013972,2]
[361411696,1747559435431,-450.0,0.00013972,2]
[361411697,1747559435441,-450.0,0.00013972,2]
[361411698,1747559435451,-295.4,0.00013972,2]
[361411699,1747559435462,-583.38,0.00013972,2]
[361411700,1747559435471,-450.0,0.00013972,2]
[361411701,1747559435481,-450.0,0.00013972,2]
[361411702,1747559435491,-450.0,0.00013972,2]
[361411703,1747559435500,-450.0,0.00013972,2]
[361411704,1747559435510,-775.46,0.00013972,2]
[361411705,1747559435519,-450.0,0.00013972,2]
[361411706,1747559435530,-450.0,0.00013972,2]
[361411707,1747559435540,-450.0,0.00013972,2]
[361411708,1747559435551,-288.44,0.00013972,2]
[361411709,1747559435561,-450.0,0.00013972,2]
[361411710,1747559435571,-450.0,0.00013972,2]
[361411711,1747559435585,-464.1,0.00013972,2]
[361411712,1747559435595,-450.0,0.00013972,2]
[361411713,1747559435604,-450.0,0.00013972,2]
[361411714,1747559435613,-450.0,0.00013972,2]
[361411715,1747559435623,-450.0,0.00013972,2]
[361411716,1747559435632,-450.0,0.00013972,2]
[361411717,1747559435642,-450.0,0.00013972,2]
[361411718,1747559435651,-450.0,0.00013972,2]
[361411719,1747559435662,-450.0,0.00013972,2]
[361411720,1747559435671,-580.82,0.00013972,2]
[361411721,1747559435680,-985.92,0.00013972,2]
[361411722,1747559435690,-450.0,0.00013972,2]
[361411723,1747559435699,-619.73,0.00013972,2]
[361411724,1747559435708,-450.0,0.00013972,2]
[361411725,1747559435717,-450.0,0.00013972,2]
[361411726,1747559435727,-450.0,0.00013972,2]
[361411727,1747559435736,-450.0,0.00013972,2]
[361411728,1747559435746,-450.0,0.00013972,2]
[361411729,1747559435755,-230.9,0.00013972,2]
[361411730,1747559435764,-650.48,0.00013972,2]
[361411731,1747559435775,-450.0,0.00013972,2]
[361411732,1747559435784,-450.0,0.00013972,2]
[361411733,1747559435793,-450.0,0.00013972,2]
[361411734,1747559435802,-450.0,0.00013972,2]
[361411735,1747559435812,-450.0,0.00013972,2]
[361411736,1747559435821,-450.0,0.00013972,2]
[361411737,1747559435830,-450.0,0.00013972,2]
[361411738,1747559435840,-450.0,0.00013972,2]
[361411739,1747559435849,-450.0,0.00013972,2]
[361411740,1747559435858,-450.0,0.00013972,2]
[361411741,1747559435867,-450.0,0.00013972,2]
[361411742,1747559435876,-452.44,0.00013972,2]
[361411743,1747559435885,-450.0,0.00013972,2]
[361411744,1747559435894,-450.0,0.00013972,2]
[361411745,1747559435903,-450.0,0.00013972,2]
[361411746,1747559435921,-450.0,0.00013972,2]
[361411747,1747559435933,-450.0,0.00013972,2]
[361411748,1747559435942,-450.0,0.00013972,2]
[361411749,1747559435951,-450.0,0.00013972,2]
[361411750,1747559435961,-450.0,0.00013972,2]
[361411751,1747559435970,-450.0,0.00013972,2]
[361411752,1747559435979,-450.0,0.00013972,2]
[361411753,1747559435989,-450.0,0.00013972,2]
[361411754,1747559435998,-450.0,0.00013972,2]
[361411755,1747559436008,-450.0,0.00013972,2]
[361411756,1747559436017,-450.0,0.00013972,2]
[361411757,1747559436028,-450.0,0.00013972,2]
[361411758,1747559436037,-450.0,0.00013972,2]
[361411759,1747559436047,-450.0,0.00013972,2]
[361411760,1747559436056,-450.0,0.00013972,2]
[361411761,1747559436066,-450.0,0.00013972,2]
[361411762,1747559436076,-450.0,0.00013972,2]
[361411763,1747559436085,-450.0,0.00013972,2]
[361411764,1747559436094,-450.0,0.00013972,2]
[361411765,1747559436103,-450.0,0.00013972,2]
[361411766,1747559436112,-450.0,0.00013972,2]
[361411767,1747559436123,-450.0,0.00013972,2]
[361411768,1747559436133,-450.0,0.00013972,2]
[361411769,1747559436142,-450.0,0.00013972,2]
[361411770,1747559436152,-450.0,0.00013972,2]
[361411771,1747559436161,-572.52,0.00013972,2]
[361411772,1747559436170,-450.0,0.00013972,2]
[361411773,1747559436180,-207.4,0.00013977,2]
[361411774,1747559436190,-160.0,0.00014051,2]
[361411775,1747559436199,-160.0,0.00014072,2]
[361411776,1747559436209,-160.0,0.00014072,2]
[361411777,1747559436219,-160.0,0.00014075,2]
[361411778,1747559436229,-12636.50182523,0.00014075,2]
[361411779,1747559436239,-998.55070715,0.00014075,2]
[361411780,1747559436248,-160.0,0.00014075,2]
[361411781,1747559436258,-160.0,0.00014075,2]
[361411782,1747559436268,-160.0,0.00014075,2]
[361411783,1747559436278,-160.0,0.00014075,2]
[361411784,1747559436287,-422.53311782,0.00014075,2]
[361411785,1747559436297,-212.32903618,0.00014077,2]
[361411786,1747559436306,-450.0,0.00014109,2]
[361411787,1747559436315,-377.88,0.00014109,2]
[361411788,1747559436325,-450.0,0.00014109,2]
[361411789,1747559436334,-450.0,0.00014109,2]
[361411790,1747559436344,-450.0,0.00014109,2]
[361411791,1747559436354,-450.0,0.00014109,2]
[361411792,1747559436364,-450.0,0.00014109,2]
[361411793,1747559436374,-775.46,0.00014109,2]
[361411794,1747559436384,-450.0,0.00014109,2]
[361411795,1747559436393,-450.0,0.00014109,2]
[361411796,1747559436403,-450.0,0.00014109,2]
[361411797,1747559436412,-450.0,0.00014109,2]
[361411798,1747559436422,-450.0,0.00014109,2]
[361411799,1747559436431,-368.76,0.00014109,2]
[361411800,1747559436441,-437.43,0.00014109,2]
[361411801,1747559436450,-450.0,0.00014109,2]
[361411802,1747559436460,-447.0,0.00014109,2]
[361411803,1747559436470,-580.82,0.00014109,2]
[361411804,1747559436479,-985.92,0.00014109,2]
[361411805,1747559436489,-619.73,0.00014109,2]
[361411806,1747559436500,-450.0,0.00014109,2]
[361411807,1747559436510,-650.48,0.00014109,2]
[361411808,1747559436519,-450.0,0.00014109,2]
[361411809,1747559436530,-450.0,0.00014109,2]
[361411810,1747559436539,-450.0,0.00014109,2]
[361411811,1747559436549,-450.0,0.00014109,2]
[361411812,1747559436558,-450.0,0.00014109,2]
[361411813,1747559436567,-416.34,0.00014109,2]
[361411814,1747559436581,-324.86,0.00014109,2]
[361411815,1747559436590,-450.0,0.00014109,2]
[361411816,1747559436599,-450.0,0.00014109,2]
[361411817,1747559436608,-358.58,0.00014109,2]
[361411818,1747559436619,-450.0,0.00014109,2]
[361411819,1747559436629,-450.0,0.00014109,2]
[361411820,1747559436638,-165.24,0.00014109,2]
[361411821,1747559436648,-450.0,0.00014109,2]
[361411822,1747559436658,-450.0,0.00014109,2]
[361411823,1747559436668,-450.0,0.00014109,2]
[361411824,1747559436677,-450.0,0.00014109,2]
[361411825,1747559436686,-280.05,0.00014109,2]
[361411826,1747559436696,-574.06,0.00014109,2]
[361411827,1747559436707,-450.0,0.00014109,2]
[361411828,1747559436718,-213.45,0.00014109,2]
[361411829,1747559436728,-474.08,0.00014109,2]
[361411830,1747559436739,-450.0,0.00014109,2]
[361411831,1747559436749,-450.0,0.00014109,2]
[361411832,1747559436759,-450.0,0.00014109,2]
[361411833,1747559436769,-450.0,0.00014109,2]
[361411834,1747559436780,-450.0,0.00014109,2]
[361411835,1747559436790,-450.0,0.00014109,2]
[361411836,1747559436800,-487.86,0.00014109,2]
[361411837,1747559436809,-450.0,0.00014109,2]
[361411838,1747559436818,-450.0,0.00014109,2]
[361411839,1747559436828,-450.0,0.00014246,2]
[361411840,1747559436837,-450.0,0.00014246,2]
[361411841,1747559436846,-288.12,0.00014246,2]
[361411842,1747559436855,-450.0,0.00014246,2]
[361411843,1747559436864,-450.0,0.00014246,2]
[361411844,1747559436874,-450.0,0.00014246,2]
[361411845,1747559436884,-775.46,0.00014246,2]
[361411846,1747559436893,-255.86,0.00014246,2]
[361411847,1747559436902,-450.0,0.00014246,2]
[361411848,1747559436912,-450.0,0.00014246,2]
[361411849,1747559436921,-450.0,0.00014246,2]
[361411850,1747559436930,-450.0,0.00014246,2]
[361411851,1747559436940,-450.0,0.00014246,2]
[361411852,1747559436950,-580.82,0.00014246,2]
[361411853,1747559436959,-985.92,0.00014246,2]
[361411854,1747559436967,-619.73,0.00014246,2]
[361411855,1747559436980,-450.0,0.00014246,2]
[361411856,1747559436990,-450.0,0.00014246,2]
[361411857,1747559436999,-650.48,0.00014246,2]
[361411858,1747559437009,-450.0,0.00014246,2]
[361411859,1747559437019,-383.43,0.00014246,2]
[361411860,1747559437028,-450.0,0.00014246,2]
[361411861,1747559437037,-450.0,0.00014246,2]
[361411862,1747559437047,-450.0,0.00014246,2]
[361411863,1747559437057,-202.96,0.00014246,2]
[361411864,1747559437066,-438.15,0.00014246,2]
[361411865,1747559437076,-450.0,0.00014246,2]
[361411866,1747559437085,-450.0,0.00014246,2]
[361411867,1747559437095,-450.0,0.00014246,2]
[361411868,1747559437104,-450.0,0.00014246,2]
[361411869,1747559437113,-319.02,0.00014246,2]
[361411870,1747559437122,-450.0,0.00014246,2]
[361411871,1747559437131,-450.0,0.00014246,2]
[361411872,1747559437140,-450.0,0.00014246,2]
[361411873,1747559437150,-450.0,0.00014246,2]
[361411874,1747559437159,-450.0,0.00014246,2]
[361411875,1747559437169,-450.0,0.00014246,2]
[361411876,1747559437180,-450.0,0.00014246,2]
[361411877,1747559437190,-450.0,0.00014246,2]
[361411878,1747559437199,-450.0,0.00014246,2]
[361411879,1747559437209,-450.0,0.00014383,2]
[361411880,1747559437378,-450.0,0.00014383,2]
[361411881,1747559437391,-450.0,0.00014383,2]
[361411882,1747559437402,-450.0,0.00014383,2]
[361411883,1747559437412,-450.0,0.00014383,2]
[361411884,1747559437423,-775.46,0.00014383,2]
[361411885,1747559437432,-450.0,0.00014383,2]
[361411886,1747559437441,-517.47,0.00014383,2]
[361411887,1747559437450,-450.0,0.00014383,2]
[361411888,1747559437460,-450.0,0.00014383,2]
[361411889,1747559437469,-450.0,0.00014383,2]
[361411890,1747559437479,-580.82,0.00014383,2]
[361411891,1747559437488,-985.92,0.00014383,2]
[361411892,1747559437497,-619.73,0.00014383,2]
[361411893,1747559437507,-245.25,0.00014383,2]
[361411894,1747559437517,-450.0,0.00014383,2]
[361411895,1747559437526,-650.48,0.00014383,2]
[361411896,1747559437535,-228.06,0.00014383,2]
[361411897,1747559437545,-450.0,0.00014383,2]
[361411898,1747559437555,-450.0,0.00014383,2]
[361411899,1747559437564,-450.0,0.00014383,2]
[361411900,1747559437573,-450.0,0.00014383,2]
[361411901,1747559437587,-450.0,0.00014383,2]
[361411902,1747559437597,-450.0,0.00014383,2]
[361411903,1747559437606,-450.0,0.00014383,2]
[361411904,1747559437615,-450.0,0.00014383,2]
[361411905,1747559437625,-450.0,0.00014383,2]
[361411906,1747559437634,-450.0,0.00014383,2]
[361411907,1747559437644,-450.0,0.00014383,2]
[361411908,1747559437656,-450.0,0.00014383,2]
[361411909,1747559437667,-450.0,0.00014383,2]
[361411910,1747559437678,-450.0,0.00014383,2]
[361411911,1747559437688,-450.0,0.00014383,2]
[361411912,1747559437697,-450.0,0.00014383,2]
[361411914,1747559437708,-163.2,0.0001452,2]
[361411915,1747559437718,-586.92,0.0001452,2]
[361411916,1747559437727,-450.0,0.0001452,2]
[361411917,1747559437737,-268.3,0.0001452,2]
[361411918,1747559437748,-450.0,0.0001452,2]
[361411919,1747559437758,-775.46,0.0001452,2]
[361411920,1747559437768,-450.0,0.0001452,2]
[361411921,1747559437778,-450.0,0.0001452,2]
[361411922,1747559437787,-450.0,0.0001452,2]
[361411923,1747559437796,-450.0,0.0001452,2]
[361411925,1747559437806,-580.82,0.0001452,2]
[361411927,1747559437814,-985.92,0.0001452,2]
[361411929,1747559437826,-619.73,0.0001452,2]
[361411931,1747559437836,-450.0,0.0001452,2]
[361411932,1747559437846,-650.48,0.0001452,2]
[361411933,1747559437856,-450.0,0.0001452,2]
[361411934,1747559437866,-450.0,0.0001452,2]
[361411935,1747559437875,-450.0,0.0001452,2]
[361411936,1747559437885,-340.36,0.0001452,2]
[361411937,1747559437894,-171.3,0.0001452,2]
[361411938,1747559437904,-450.0,0.0001452,2]
[361411939,1747559437914,-450.0,0.0001452,2]
[361411940,1747559437923,-450.0,0.0001452,2]
[361411941,1747559437933,-439.32,0.0001452,2]
[361411942,1747559437943,-450.0,0.0001452,2]
[361411944,1747559437952,-450.0,0.0001452,2]
[361411945,1747559437961,-450.0,0.0001452,2]
[361411946,1747559437971,-450.0,0.0001452,2]
[361411947,1747559437982,-450.0,0.0001452,2]
[361411948,1747559437992,-450.0,0.0001452,2]
[361411949,1747559438001,-450.0,0.0001452,2]
[361411950,1747559438010,-306.36,0.00014657,2]
[361411951,1747559438019,-583.23,0.00014657,2]
[361411952,1747559438029,-775.46,0.00014657,2]
[361411953,1747559438039,-525.75,0.00014657,2]
[361411954,1747559438048,-450.0,0.00014657,2]
[361411955,1747559438057,-450.0,0.00014657,2]
[361411956,1747559438067,-450.0,0.00014657,2]
[361411957,1747559438076,-580.82,0.00014657,2]
[361411959,1747559438085,-985.92,0.00014657,2]
[361411961,1747559438094,-619.73,0.00014657,2]
[361411962,1747559438103,-450.0,0.00014657,2]
[361411963,1747559438113,-650.48,0.00014657,2]
[361411964,1747559438122,-450.0,0.00014657,2]
[361411965,1747559438131,-272.1,0.00014657,2]
[361411966,1747559438140,-450.0,0.00014657,2]
[361411967,1747559438149,-450.0,0.00014657,2]
[361411968,1747559438159,-450.0,0.00014657,2]
[361411969,1747559438168,-453.9,0.00014657,2]
[361411970,1747559438178,-450.0,0.00014657,2]
[361411971,1747559438187,-450.0,0.00014657,2]
[361411972,1747559438197,-450.0,0.00014657,2]
[361411973,1747559438206,-450.0,0.00014657,2]
[361411974,1747559438217,-340.47,0.00014657,2]
[361411975,1747559438227,-450.0,0.00014657,2]
[361411976,1747559438236,-283.34,0.00014657,2]
[361411977,1747559438245,-775.46,0.00014794,2]
[361411978,1747559438254,-450.0,0.00014794,2]
[361411979,1747559438264,-450.0,0.00014794,2]
[361411980,1747559438273,-450.0,0.00014794,2]
[361411981,1747559438282,-580.82,0.00014794,2]
[361411982,1747559438292,-985.92,0.00014794,2]
[361411983,1747559438302,-619.73,0.00014794,2]
[361411984,1747559438312,-239.22,0.00014794,2]
[361411985,1747559438321,-650.48,0.00014794,2]
[361411986,1747559438332,-450.0,0.00014794,2]
[361411987,1747559438342,-450.0,0.00014794,2]
[361411988,1747559438352,-450.0,0.00014794,2]
[361411989,1747559438361,-450.0,0.00014794,2]
[361411990,1747559438370,-450.0,0.00014794,2]
[361411991,1747559438380,-450.0,0.00014794,2]
[361411992,1747559438390,-509.55,0.00014794,2]
[361411993,1747559438399,-450.0,0.00014794,2]
[361411994,1747559438409,-556.96,0.00014794,2]
[361411995,1747559438418,-211.16260147,0.00014796,2]
[361411996,1747559438428,-775.46,0.00014931,2]
[361411997,1747559438438,-450.0,0.00014931,2]
[361411998,1747559438447,-450.0,0.00014931,2]
[361411999,1747559438457,-450.0,0.00014931,2]
[361412000,1747559438466,-580.82,0.00014931,2]
[361412001,1747559438476,-985.92,0.00014931,2]
[361412002,1747559438486,-619.73,0.00014931,2]
[361412003,1747559438497,-650.48,0.00014931,2]
[361412004,1747559438507,-450.0,0.00014931,2]
[361412005,1747559438516,-450.0,0.00014931,2]
[361412006,1747559438526,-450.0,0.00014931,2]
[361412007,1747559438536,-450.0,0.00014931,2]
[361412008,1747559438545,-450.0,0.00014931,2]
[361412009,1747559438555,-450.0,0.00014931,2]
[361412010,1747559438565,-160.35,0.00014931,2]
[361412011,1747559438574,-775.46,0.00015068,2]
[361412012,1747559438588,-178.23,0.00015068,2]
[361412013,1747559438598,-450.0,0.00015068,2]
[361412014,1747559438608,-450.0,0.00015068,2]
[361412015,1747559438618,-580.82,0.00015068,2]
[361412016,1747559438628,-985.92,0.00015068,2]
[361412017,1747559438637,-619.73,0.00015068,2]
[361412018,1747559438646,-650.48,0.00015068,2]
[361412019,1747559438656,-450.0,0.00015068,2]
[361412020,1747559438664,-450.0,0.00015068,2]
[361412021,1747559438673,-450.0,0.00015068,2]
[361412022,1747559438683,-450.0,0.00015068,2]
[361412023,1747559438692,-450.0,0.00015068,2]
[361412024,1747559438702,-450.0,0.00015068,2]
[361412025,1747559438711,-775.46,0.00015205,2]
[361412026,1747559438720,-450.0,0.00015205,2]
[361412027,1747559438730,-450.0,0.00015205,2]
[361412028,1747559438740,-580.82,0.00015205,2]
[361412029,1747559438749,-985.92,0.00015205,2]
[361412030,1747559438759,-619.73,0.00015205,2]
[361412031,1747559438768,-650.48,0.00015205,2]
[361412032,1747559438778,-450.0,0.00015205,2]
[361412033,1747559438787,-450.0,0.00015205,2]
[361412034,1747559438797,-450.0,0.00015205,2]
[361412035,1747559438807,-450.0,0.00015205,2]
[361412036,1747559438817,-450.0,0.00015205,2]
[361412037,1747559438826,-450.0,0.00015205,2]
[361412038,1747559438835,-775.46,0.00015342,2]
[361412039,1747559438846,-450.0,0.00015342,2]
[361412040,1747559438856,-204.36,0.00015342,2]
[361412041,1747559438865,-580.82,0.00015342,2]
[361412042,1747559438875,-985.92,0.00015342,2]
[361412043,1747559438884,-619.73,0.00015342,2]
[361412044,1747559438894,-650.48,0.00015342,2]
[361412045,1747559438903,-450.0,0.00015342,2]
[361412046,1747559438912,-428.76,0.00015342,2]
[361412047,1747559438922,-450.0,0.00015342,2]
[361412048,1747559438931,-450.0,0.00015342,2]
[361412049,1747559438940,-450.0,0.00015342,2]
[361412050,1747559438949,-450.0,0.00015342,2]
[361412051,1747559438958,-176.466673,0.00015463,3]
[361412052,1747559438967,-775.46,0.00015479,2]
[361412053,1747559438977,-450.0,0.00015479,2]
[361412054,1747559438986,-580.82,0.00015479,2]
[361412055,1747559438995,-985.92,0.00015479,2]
[361412056,1747559439004,-619.73,0.00015479,2]
[361412057,1747559439014,-650.48,0.00015479,2]
[361412058,1747559439024,-450.0,0.00015479,2]
[361412059,1747559439033,-450.0,0.00015479,2]
[361412060,1747559439042,-450.0,0.00015479,2]
[361412061,1747559439052,-450.0,0.00015479,2]
[361412062,1747559439061,-450.0,0.00015479,2]
[361412063,1747559439071,-775.46,0.00015616,2]
[361412064,1747559439080,-450.0,0.00015616,2]
[361412065,1747559439091,-580.82,0.00015616,2]
[361412066,1747559439101,-985.92,0.00015616,2]
[361412067,1747559439111,-619.73,0.00015616,2]
[361412068,1747559439122,-650.48,0.00015616,2]
[361412069,1747559439131,-450.0,0.00015616,2]
[361412070,1747559439140,-450.0,0.00015616,2]
[361412071,1747559439150,-450.0,0.00015616,2]
[361412072,1747559439160,-450.0,0.00015616,2]
[361412073,1747559439169,-450.0,0.00015616,2]
[361412074,1747559439179,-546.0,0.00015743,2]
[361412075,1747559439188,-707.0,0.00015743,2]
[361412076,1747559439198,-2207.0,0.00015743,2]
[361412077,1747559439208,-775.46,0.00015753,2]
[361412078,1747559439217,-450.0,0.00015753,2]
[361412079,1747559439227,-580.82,0.00015753,2]
[361412080,1747559439236,-985.92,0.00015753,2]
[361412081,1747559439245,-619.73,0.00015753,2]
[361412082,1747559439255,-650.48,0.00015753,2]
[361412083,1747559439265,-450.0,0.00015753,2]
[361412084,1747559439274,-187.95,0.00015753,2]
[361412085,1747559439284,-450.0,0.00015753,2]
[361412086,1747559439293,-450.0,0.00015753,2]
[361412087,1747559439302,-450.0,0.00015753,2]
[361412088,1747559439311,-246.148,0.00015886,2]
[361412089,1747559439321,-775.46,0.0001589,2]
[361412090,1747559439331,-450.0,0.0001589,2]
[361412091,1747559439341,-580.82,0.0001589,2]
[361412092,1747559439350,-985.92,0.0001589,2]
[361412093,1747559439360,-619.73,0.0001589,2]
[361412094,1747559439369,-650.48,0.0001589,2]
[361412095,1747559439378,-450.0,0.0001589,2]
[361412096,1747559439388,-529.62,0.0001589,2]
[361412097,1747559439398,-450.0,0.0001589,2]
[361412098,1747559439407,-450.0,0.0001589,2]
[361412099,1747559439416,-775.46,0.00016027,2]
[361412100,1747559439426,-450.0,0.00016027,2]
[361412101,1747559439436,-580.82,0.00016027,2]
[361412102,1747559439446,-985.92,0.00016027,2]
[361412103,1747559439456,-619.73,0.00016027,2]
[361412104,1747559439467,-650.48,0.00016027,2]
[361412105,1747559439476,-450.0,0.00016027,2]
[361412106,1747559439486,-450.0,0.00016027,2]
[361412107,1747559439495,-194.28,0.00016027,2]
[361412108,1747559439504,-500.0,0.00016164,2]
[361412109,1747559439515,-564.10633452,0.00016164,2]
[361412110,1747559439524,-500.0,0.00016164,2]
[361412111,1747559439534,-500.0,0.00016164,2]
[361412112,1747559439543,-500.0,0.00016164,2]
[361412113,1747559439552,-500.0,0.00016164,2]
[361412114,1747559439561,-500.0,0.00016164,2]
[361412115,1747559439570,-500.0,0.00016164,2]
[361412117,1747559439581,-500.0,0.00016164,2]
[361412119,1747559439592,-775.46,0.00016164,2]
[361412120,1747559439602,-300.0,0.00016164,2]
[361412121,1747559439612,-450.0,0.00016164,2]
[361412122,1747559439622,-580.82,0.00016164,2]
[361412123,1747559439631,-985.92,0.00016164,2]
[361412124,1747559439640,-619.73,0.00016164,2]
[361412125,1747559439650,-650.48,0.00016164,2]
[361412126,1747559439661,-502.66862978,0.00016164,2]
[361412127,1747559439671,-450.0,0.00016164,2]
[361412128,1747559439681,-151.0,0.000162,2]
[361412129,1747559439690,-775.46,0.00016301,2]
[361412130,1747559439699,-450.0,0.00016301,2]
[361412131,1747559439709,-580.82,0.00016301,2]
[361412132,1747559439718,-985.92,0.00016301,2]
[361412133,1747559439728,-619.73,0.00016301,2]
[361412134,1747559439738,-650.48,0.00016301,2]
[361412135,1747559439747,-450.0,0.00016301,2]
[361412136,1747559439756,-775.46,0.00016438,2]
[361412137,1747559439765,-450.0,0.00016438,2]
[361412138,1747559439774,-580.82,0.00016438,2]
[361412139,1747559439784,-985.92,0.00016438,2]
[361412140,1747559439793,-619.73,0.00016438,2]
[361412141,1747559439802,-650.48,0.00016438,2]
[361412142,1747559439812,-245.0,0.00016438,2]
[361412143,1747559439821,-775.46,0.00016575,2]
[361412144,1747559439830,-450.0,0.00016575,2]
[361412145,1747559439839,-580.82,0.00016575,2]
[361412146,1747559439850,-985.92,0.00016575,2]
[361412147,1747559439859,-406.43460799,0.00016575,2]
[361412148,1747559439979,-213.29539201,0.00016575,2]
[361412149,1747559439993,-650.48,0.00016575,2]
[361412150,1747559440002,-117.76129224,0.00016712,2]
[361412164,1747559440130,-706.27112941,0.00013039,2]
[361412166,1747559440140,-127.54896331,0.00013835,2]
[361412783,1747559446395,-322.45103669,0.00013697,2]
[361412785,1747559446404,-450.0,0.00013698,2]
[361412787,1747559446414,-322.45103669,0.00013835,2]
[361412790,1747559446423,-256.54187128,0.00013835,2]
[361413912,1747559855414,-155.0,0.00011988,2]
[361413913,1747559855435,-25.0,0.00012109,2]
[361413948,1747560632209,-758.65579532,0.00012441,2]
[361413950,1747560632220,-439.62274578,0.00012441,2]
[361413952,1747560632231,-1198.2785411,0.00012567,2]
[361413954,1747560632240,-300.0,0.00012936,2]
[361413956,1747560632249,-300.0,0.00012936,2]
[361413957,1747560632258,-23703.8707807,0.00012937,2]
[361413959,1747560632267,-153.711911,0.00013287,2]
[361413960,1747560632275,-223.81288539,0.00013553,2]
[361413962,1747560632284,-397.96844421,0.00013597,2]
[361413963,1747560632294,-565.01690352,0.00013598,2]
[361413965,1747560632304,-563.5667068,0.00013697,2]